Cogmind - Beta 11 X3 *** ADVENTURER MODE // 2021.03.26 @ 21:23:38 Player: Luigi Panache Result: Destroyed by as-40051 with Assembled Rifle Performance ------------- Evolutions (0) 0 Regions Visited (4) 800 Robots Destroyed (12) 60 Value Destroyed (392) 392 Prototype IDs (0) 0 Alien Tech Used (0) 0 Bonus (0) 0 TOTAL SCORE: 1252 Bonus ------- None Cogmind --------- Core Integrity 0/250 Matter 300/300 Energy 100/100 System Corruption 2% Temperature Cool (0) Movement Core (50) Location -9/Mines Parts ------- > --- POWER (1) -------- (None) > --- PROPULSION (2) --- Light Treads > --- UTILITY (2) ------ (None) > --- WEAPON (2) ------- (None) > --- INVENTORY (5) ---- Light Treads Light Treads Aluminum Leg Wheel EM Shotgun Peak State ------------ > --- POWER ------------ Light Ion Engine > --- PROPULSION ------- Light Treads Light Treads > --- UTILITY ---------- Small Storage Unit Light Armor Plating > --- WEAPON ----------- Small Laser Flail > --- INVENTORY -------- Ion Engine Light Treads Light Treads Aluminum Leg Aluminum Leg Wheel Wheel Structural Scanner [Rating: 8] Favorites ----------- Power Light Ion Engine Engine Light Ion Engine Propulsion Light Treads Treads Light Treads Leg Aluminum Leg Utility Small Storage Unit Storage Small Storage Unit Protection Light Armor Plating Weapon EM Pulse Gun Energy Gun EM Pulse Gun Ballistic Gun Light Assault Rifle Impact Weapon Flail Build | -11 -10 -10 -10 -9 ------- Run | Scr Mat Min Exi Min Slots Evolved . | . . . . . Power . | . . . . . Propulsion . | . . . . . Utility . | . . . . . Weapon . | . . . . . Parts Attached 7 | . 4 . . 3 Power . | . . . . . Engine . | . . . . . Core . | . . . . . Reactor . | . . . . . Propulsion 4 | . 2 . . 2 Treads 4 | . 2 . . 2 Leg . | . . . . . Wheel . | . . . . . Hover . | . . . . . Flight . | . . . . . Utility 1 | . 1 . . . Device . | . . . . . Storage . | . . . . . Processor . | . . . . . Hackware . | . . . . . Protection 1 | . 1 . . . Artifact . | . . . . . Weapon 2 | . 1 . . 1 Energy Gun 1 | . 1 . . . Energy Cannon . | . . . . . Ballistic Gun . | . . . . . Ballistic Cannon . | . . . . . Launcher . | . . . . . Special Weapon . | . . . . . Impact Weapon 1 | . . . . 1 Slashing Weapon . | . . . . . Piercing Weapon . | . . . . . Special Melee Weapon . | . . . . . Unidentified Prototypes . | . . . . . Parts Lost 4 | . 1 . . 3 Power 1 | . . . . 1 Propulsion 1 | . . . . 1 Utility . | . . . . . Weapon 2 | . 1 . . 1 Highest Loss Streak 1 | . 1 . . 1 Average Slot Usage (%) 89 | . 90 100 100 51 Engine 12 | . 14 14 14 6 Treads 26 | . 26 28 28 19 Storage 12 | . 14 14 14 7 Protection 9 | . 5 14 14 7 Energy Gun 21 | . 19 28 28 9 Ballistic Gun 3 | . 8 . . . Naked Turns 45 | . . . . 45 Heaviest Build 14 | 11 14 14 14 14 Greatest Support 40 | 20 40 40 40 40 Greatest Overweight (x) . | . . . . . Average Overweight (x) . | . . . . . Largest Inventory Capacity 8 | . 8 8 8 8 Average Capacity 7 | . 8 8 8 6 Most Carried 8 | . 8 8 8 8 Average Carried 7 | . 7 8 8 6 Final Capacity 8 | 8 8 8 8 5 Final Carried 8 | 6 8 8 8 5 Class Distribution -------------------- 100% | Mutant Dominant Class ---------------- Mutant | -10/Materials Mutant | -10/Mines Mutant | -10/Exiles Mutant | -9/Mines Resources | -11 -10 -10 -10 -9 ----------- Run | Scr Mat Min Exi Min Matter Collected 286 | 200 56 . . 30 Remotely . | . . . . . Salvage Created 527 | . 348 44 . 135 Parts 32 | . 20 4 . 8 Haulers Intercepted 1 | . 1 . . . Recyclers Shooed . | . . . . . Parts Field Recycled . | . . . . . Retrieved Matter . | . . . . . Parts Self-Destructed . | . . . . . Prevented . | . . . . . Kills | -11 -10 -10 -10 -9 ------- Run | Scr Mat Min Exi Min Combat Hostiles Destroyed 9 | . 5 1 . 3 Guns 9 | . 5 1 . 3 Classes Destroyed 3 | . 3 . . . Hauler 1 | . 1 . . . Watcher 2 | . 2 . . . Grunt 9 | . 5 1 . 3 Best Kill Streak 3 | . 2 1 . 3 Combat Bots Only 3 | . 2 1 . 3 Max Kills in Single Turn 1 | . 1 1 . 1 Gunslinging . | . . . . . Exploded . | . . . . . Melee . | . . . . . Uniques/NPCs Destroyed . | . . . . . Combat | -11 -10 -10 -10 -9 -------- Run | Scr Mat Min Exi Min Damage Taken 734 | . 183 26 . 525 Core 251 | . . . . 251 Absorbed by Shields . | . . . . . Core Remaining (%) 100 | 100 . . . . Volleys Fired 41 | . 28 2 . 11 Largest 2 | . 2 2 . 2 Hottest 80 | . 80 80 . 80 Shots Fired 77 | . 55 4 . 18 Gun 77 | . 55 4 . 18 Cannon . | . . . . . Launcher . | . . . . . Special . | . . . . . Kinetic 21 | . 21 . . . Thermal 19 | . 6 2 . 11 Explosive . | . . . . . Electromagnetic 37 | . 28 2 . 7 Robot Hit Streak 25 | . 25 4 . 7 Robot Miss Streak 2 | . 1 1 . 2 Penetration Max . | . . . . . Secondary Targets 1 | . 1 . . . Max Gunslinging Chain 1 | . 1 . . . Shots Hit Robots 63 | . 46 3 . 14 Core Hits 29 | . 17 3 . 9 Critical Hits . | . . . . . Critical Kills . | . . . . . Critical Parts Destroyed . | . . . . . Melee Attacks 1 | . . . . 1 Impact 1 | . . . . 1 Slashing . | . . . . . Piercing . | . . . . . Sneak Attacks . | . . . . . Combat Hostiles . | . . . . . Follow-up Attacks . | . . . . . Damage Inflicted 825 | . 569 46 . 210 Guns 653 | . 460 39 . 154 Cannons . | . . . . . Explosions 109 | . 109 . . . Melee 35 | . . . . 35 Ramming 28 | . . 7 . 21 Kinetic 108 | . 108 . . . Thermal 251 | . 153 11 . 87 Explosive . | . . . . . Electromagnetic 403 | . 308 28 . 67 Impact 35 | . . . . 35 Slashing . | . . . . . Piercing . | . . . . . Highest Corruption 2 | . . . . 2 Average Corruption 2 | . . . . 2 Corruption Purged . | . . . . . Overload Shots . | . . . . . Overflow Damage 16 | . 16 . . . Projectiles . | . . . . . Explosions 16 | . 16 . . . Melee . | . . . . . Knockbacks . | . . . . . Impact . | . . . . . Kinetic . | . . . . . Secondary . | . . . . . Self-Inflicted Damage 49 | . 39 . . 10 Shots 1 | . 1 . . . Rammed 6 | . . 2 . 4 Targets Rammed 6 | . . 2 . 4 Kicked . | . . . . . Crushed . | . . . . . Highest Temperature 250 | . 114 63 . 250 Average Temperature 71 | . 41 34 . 140 Received Heat Transfer 207 | . 120 18 . 69 Effects 1 | . . . . 1 Interference 1 | . . . . 1 Siege Activations . | . . . . . Robots Corrupted . | . . . . . Combat Hostiles . | . . . . . Parts Fried 1 | . 1 . . . Impact Corruptions . | . . . . . Robots Melted . | . . . . . Combat Hostiles . | . . . . . Parts Melted 1 | . . . . 1 Heat Transferred 425 | . 200 25 . 200 Parts Sabotaged . | . . . . . Parts Stolen . | . . . . . Parts Stripped . | . . . . . Power Chain Reactions 1 | . 1 . . . Missiles Intercepted . | . . . . . Alert | -11 -10 -10 -10 -9 ------- Run | Scr Mat Min Exi Min Peak Influence 210 | . 210 33 . 100 Initial 3 | . . 3 . . Average 55 | . 75 5 . 54 Maximum Alert Level 1 | . 1 . . . Low Security (%) 92 | . 86 100 . 100 Level 1 7 | . 13 . . . Level 2 . | . . . . . Level 3 . | . . . . . Level 4 . | . . . . . Level 5 . | . . . . . High Security . | . . . . . Max Security . | . . . . . Squads Dispatched 2 | . 1 1 . . Investigation 2 | . 1 1 . . Extermination . | . . . . . Reinforcement . | . . . . . Assault . | . . . . . Garrison . | . . . . . Intercept . | . . . . . Construction Impeded . | . . . . . Haulers Reinforced . | . . . . . Stealth | -11 -10 -10 -10 -9 --------- Run | Scr Mat Min Exi Min Distress Signals . | . . . . . Communications Jammed . | . . . . . Distress Signals . | . . . . . Times Spotted 35 | . 8 2 . 25 Peak Tracking Total 15 | . 2 2 . 15 Tactical Retreats 4 | . 1 . . 3 Traps | -11 -10 -10 -10 -9 ------- Run | Scr Mat Min Exi Min Traps Triggered 1 | . 1 . . . Indirectly . | . . . . . Trap Hack Attempts . | . . . . . Triggered . | . . . . . Disarmed . | . . . . . Reprogrammed . | . . . . . Reused . | . . . . . Traps Extracted . | . . . . . Installed . | . . . . . Triggered . | . . . . . Machines | -11 -10 -10 -10 -9 ---------- Run | Scr Mat Min Exi Min Machines Disabled . | . . . . . Max in Single Turn . | . . . . . Machines Sabotaged . | . . . . . Garrisons Compromised . | . . . . . Overloaded Fab Kills . | . . . . . Fab Network Shutdowns . | . . . . . Hacking | -11 -10 -10 -10 -9 --------- Run | Scr Mat Min Exi Min Machines Accessed 5 | . 4 1 . . Terminals 3 | . 3 . . . Fabricators . | . . . . . Repair Stations . | . . . . . Recycling Units 1 | . 1 . . . Scanalyzers . | . . . . . Garrison Access . | . . . . . Total Hacks 9 | . 8 1 . . Successful 4 | . 3 1 . . Failed 5 | . 5 . . . Catastrophic 1 | . 1 . . . Database Lockouts . | . . . . . Manual 6 | . 6 . . . Terminals 6 | . 6 . . . Fabricators . | . . . . . Repair Stations . | . . . . . Recycling Units 2 | . 2 . . . Scanalyzers . | . . . . . Garrison Access . | . . . . . Terminal Hacks 2 | . 1 1 . . Open Door 1 | . . 1 . . Terminal Index 1 | . 1 . . . Fabricator Hacks . | . . . . . Repair Station Hacks . | . . . . . Recycling Unit Hacks . | . . . . . Scanalyzer . | . . . . . Garrison Access Hacks . | . . . . . Unauthorized Hacks 2 | . 2 . . . Terminals 1 | . 1 . . . Botnet 1 | . 1 . . . Fabricators . | . . . . . Repair Stations . | . . . . . Recycling Units 1 | . 1 . . . Mask 1 | . 1 . . . Scanalyzers . | . . . . . Garrison Access . | . . . . . Data Cores Recovered . | . . . . . Used . | . . . . . Hacking Detections 3 | . 3 . . . Full Trace Events . | . . . . . Feedback Events . | . . . . . Feedback Blocked . | . . . . . Robot Schematics Acquired . | . . . . . Robots Built . | . . . . . Matter . | . . . . . Time . | . . . . . Total Robot Build Rating . | . . . . . Part Schematics Acquired . | . . . . . Parts Built . | . . . . . Matter . | . . . . . Time . | . . . . . Total Part Build Rating . | . . . . . Parts Repaired . | . . . . . Time . | . . . . . Parts Recycled . | . . . . . Recycled Matter . | . . . . . Retrieved Matter . | . . . . . Retrieved Components . | . . . . . Parts Scanalyzed . | . . . . . Part Schematics Acquired . | . . . . . Parts Damaged . | . . . . . Bothacking | -11 -10 -10 -10 -9 ------------ Run | Scr Mat Min Exi Min Used RIF Installer . | . . . . . Robots Hacked . | . . . . . Non-combat . | . . . . . Combat . | . . . . . Robot Hacks Applied . | . . . . . Relay Couplers Released . | . . . . . Robots Rewired . | . . . . . Allies Hacked . | . . . . . Hacks Repelled . | . . . . . Allies | -11 -10 -10 -10 -9 -------- Run | Scr Mat Min Exi Min Total Allies . | . . . . . Largest Group . | . . . . . Highest-Rated Group . | . . . . . Highest-Rated Ally . | . . . . . Total Orders . | . . . . . Ally Attacks . | . . . . . Total Damage . | . . . . . Kills . | . . . . . Allies Corrupted . | . . . . . Allies Melted . | . . . . . Intel | -11 -10 -10 -10 -9 ------- Run | Scr Mat Min Exi Min Robot Analysis Total . | . . . . . Derelict Logs Recovered 2 | . . 1 . 1 Drone Launches . | . . . . . Drone Recoveries . | . . . . . Exploration | -11 -10 -10 -10 -9 ------------- Run | Scr Mat Min Exi Min Turns Passed 1250 | . 478 182 404 186 Spaces Moved 809 | 1 250 105 253 200 Core 161 | . . . . 161 Treads 626 | . 229 105 253 39 Legs 22 | 1 21 . . . Wheels . | . . . . . Hover . | . . . . . Flight . | . . . . . Fastest Speed 50 | 120 120 160 160 50 Average Speed 137 | 120 156 160 160 71 Slowest Speed 160 | 120 160 160 160 160 Overloaded Moves . | . . . . . Propulsion Burnouts . | . . . . . Robots Hopped . | . . . . . Cave-ins Triggered . | . . . . . Exploration Rate (%) 37 | 2 39 26 69 51 Regions Visited 4 Branch Regions 3 Pre-discovered Areas . | . . . . . Known Exits Taken 1 | . . . 1 . Unknown Exits Taken 3 | 1 1 1 . . Scrap Searched 1 | . . . . 1 Spaces Dug . | . . . . . Terrain Destroyed 8 | . 8 . . . Melee . | . . . . . Projectile . | . . . . . AOE 8 | . 8 . . . Terrain Rammed . | . . . . . Walls Destroyed . | . . . . . Machines Disabled . | . . . . . Actions | -11 -10 -10 -10 -9 --------- Run | Scr Mat Min Exi Min Total 874 | . 286 114 252 222 Wait 7 | . . 6 . 1 Move 805 | . 249 104 252 200 Hop . | . . . . . Pick Up 4 | . 3 . . 1 Fast Attach 4 | . 1 . . 3 Attach 3 | . 3 . . . Detach 2 | . 2 . . . Swap . | . . . . . Drop 1 | . . . . 1 Fire 41 | . 28 2 . 11 Melee 1 | . . . . 1 Ram 4 | . . . . 4 Kick . | . . . . . Crush 2 | . . 2 . . Escape Stasis . | . . . . . Rewire . | . . . . . Trap . | . . . . . Miscellaneous . | . . . . . Route ------- -11/Scrapyard -10/Materials -10/Mines (discovered 2 exits: [*Mat] / [*Exi]) -10/Exiles (discovered 2 exits: *Min x2) -9/Mines History --------- Turn | Location | Event 1 | -11/Scrapyard | Discovered new exit (range 0) 1 | -11/Scrapyard | Entered Materials 321 | -10/Materials | Build established: Mutant 458 | -10/Materials | Discovered new exit (range 12) 479 | -10/Materials | Entered Mines 585 | -10/Mines | Met a Derelict shopkeep closing up shop 620 | -10/Mines | Discovered new exit (range 6) 653 | -10/Mines | Deemed a non-threat by the Exiles lab entrance 655 | -10/Mines | Discovered new exit (range 5) 661 | -10/Mines | Entered Exiles 661 | -10/Exiles | Found Exiles lab abandoned 662 | -10/Exiles | Identified exit to Mines 1065 | -10/Exiles | Entered Mines 1120 | -9/Mines | Learned Materials security intel 1143 | -9/Mines | Assembled infested the area 1162 | -9/Mines | Released all parts (6) 1194 | -9/Mines | Core integrity fell below 50% 1229 | -9/Mines | Core integrity fell below 20% 1251 | -9/Mines | Destroyed by as-40051 with Assembled Rifle Last Messages --------------- 01161_ as-25975 sneak attacks. 01161_ T-07 Excavator system corrupted by crushing effect. 01161_ as-31705 sneak attacks. 01161_ T-07 Excavator destroyed. 01162_ Released Sml. Laser. 01162_ Released Lgt. Treads. 01162_ Released Sml. Storage Unit. 01162_ Released Lgt. Armor Plating. 01162_ Released Flail. 01184_ Knocked back. 01191_ Slammed into as-81447. 01191_ Destabilizing: Core damaged (-10). 01192_ Slammed into as-65170. 01207_ Acquired Lgt. Treads. 01217_ R-06 Scavenger destroyed. 01220_ T-07 Excavator system corrupted by crushing effect. 01220_ Acquired 20 matter. 01220_ T-07 Excavator destroyed. 01223_ Knocked back. 01227_ Lgt. Treads destroyed. Map ----- +----------------------------------------------------+ | ??????????????????# #### | | ?????????? ????# ## | | ?????????? ## =%* | | ????????? % = | | ????????? ! # | | ??????????????## #### | | ???????????????## ##### #??? | | ???????????????????????# #??? | | ??????????????########## ##?? | | ??????????????# #?? | | ??????????????# #?? | | ??????????????# """ """ #?? | | ??????????##### """ """ #?? | | ??????????# """ """ #?? | | ??????????# ### ### | | ??????????# #?# """ """ # | | ???###++### #?# """ """ # | | ???# # #?# """ """ # ? | | ??## #a#?# #?? | | ??# aa#?# """ """ #?? | | ??# #?# """ """ #?? | | ??# a #?# """ """ #?? | | ??# a #?# ?? #?? | | ??# a #?##########?????? | | ??# #????????????????? | | ??# @ #????????????????? | | ??# #????????????????? | | ??###########????????????????? | | ?????????????????????????????? | | ?????????????????????????????? | | ?????????????????????????????? | | ?????????????????????????????? | | ?????????????????????????????? | | ?????????????????????????????? | | ?????????????????????????????? | | ?????????????????????????????? | | ?????????????????????????????? | | ?????????????????????????????? | | ?????????????????????????????? | | ?????????????????????????????? | | ?????????????????????????????? | | ?????????????????????????????? | | ?????????????????????????????? | | ?????????????????????????????? | | ?????????????????????????????? | | ?????????????????????????????? | | ?????????????????????????????? | | ?????????????????????????????? | | | | | +----------------------------------------------------+ Best States ------------- Heat Dissipation 25 Energy Generation 10 Energy Capacity 125 Matter Stores 300 Matter Capacity 300 Sight Range 16 Terrain Scan Density 10 Armor Coverage 150 Resistance: KI 20 Resistance: TH 20 Resistance: EX 20 Resistance: EM 20 Resistance: I 20 Resistance: S 20 Resistance: P 20 Evasion (%) 55 Recoil Reduction 2 Offensive Hacking 10 Item Schematics ----------------- None Robot Schematics ------------------ None Fabricated ------------ Nothing Alien Tech Used ----------------- None Achievements -------------- None Challenges ------------ None Game ------ Seed CombatImprinterStorm Manual? 0 Play Time 00:08:24 Cumulative 321.3 hours Start 2021.03.26 @ 21:17:11 End 2021.03.26 @ 21:23:38 Sessions 1 Manual Loads 0 Difficulty Adventurer Special Mode None Game No. 319 Rogue 146 Adventurer 95 Explorer 78 Win Type - Total 23 Types 16/0/5/2/0/0/0/0/0 Lore% 80 Gallery% 88 Achievement% 70 Wizard Run 0 Options --------- ASCII 0 Keyboard 0 Movement Numpad Keybinds 0 Fullscreen 2 Font 18/TerminusBold Map View 76x50 Tactical HUD 1 Map Filters NONE Filters NONE Steam 1 RUN: 143d393c-ee04-442b-afbc-0c93ff0241e5